[Event "*** Titled Tuesday 3|2 Blitz"]
[Site "Chess.com"]
[Date "2015.09.01"]
[Round "9"]
[White "BakaPG"]
[Black "manubibi"]
[Result "1-0"]
[WhiteElo "2452"]
[BlackElo "2417"]
[TimeControl "180+2"]
[EndTime "12:52:47 PDT"]
[Termination "BakaPG won by resignation"]

1. e4 {[%clk 0:03:01.9]} 1... c5 {[%clk 0:03:00.7]} 2. Nf3 {[%clk 0:03:01.2]}
2... d6 {[%clk 0:03:01.8]} 3. d4 {[%clk 0:03:01.4]} 3... cxd4 {[%clk 0:03:03.2]}
4. Nxd4 {[%clk 0:03:02.1]} 4... Nf6 {[%clk 0:03:04.4]} 5. Nc3 {[%clk 0:03:02]}
5... a6 {[%clk 0:03:05.4]} 6. Be3 {[%clk 0:03:00.5]} 6... Ng4 {[%clk 0:03:05.8]}
7. Bc1 {[%clk 0:02:59.8]} 7... Nf6 {[%clk 0:03:06.2]} 8. f3 {[%clk 0:03:00.5]}
8... e6 {[%clk 0:03:06.5]} 9. Be3 {[%clk 0:02:59.9]} 9... b5 {[%clk 0:03:07.7]}
10. Qd2 {[%clk 0:02:59.7]} 10... Nbd7 {[%clk 0:03:08.9]} 11. a4 {[%clk
0:02:58.8]} 11... b4 {[%clk 0:02:57]} 12. Nd1 {[%clk 0:02:51.7]} 12... d5 {[%clk
0:02:57.6]} 13. exd5 {[%clk 0:02:45.3]} 13... Nxd5 {[%clk 0:02:58.2]} 14. Bc4
{[%clk 0:02:45.3]} 14... Nxe3 {[%clk 0:02:36.9]} 15. Nxe3 {[%clk 0:02:43.6]}
15... Ne5 {[%clk 0:02:31.9]} 16. Be2 {[%clk 0:02:38.3]} 16... Bc5 {[%clk
0:02:27.7]} 17. O-O-O {[%clk 0:02:33.3]} 17... Bb7 {[%clk 0:02:28.2]} 18. Kb1
{[%clk 0:02:25.2]} 18... O-O {[%clk 0:02:26.6]} 19. Rhe1 {[%clk 0:02:16.7]}
19... Qb6 {[%clk 0:02:26.7]} 20. a5 {[%clk 0:02:02]} 20... Qa7 {[%clk
0:02:21.8]} 21. f4 {[%clk 0:01:58.1]} 21... Rad8 {[%clk 0:02:19.8]} 22. fxe5
{[%clk 0:01:58]} 22... Bxd4 {[%clk 0:02:12.7]} 23. Nc4 {[%clk 0:01:51.6]} 23...
Bxg2 {[%clk 0:01:51.5]} 24. Qg5 {[%clk 0:01:44]} 24... Be4 {[%clk 0:01:45.7]}
25. Bd3 {[%clk 0:01:32.5]} 25... h6 {[%clk 0:01:46.4]} 26. Qg4 {[%clk
0:01:31.7]} 26... Bxd3 {[%clk 0:01:29]} 27. Rxd3 {[%clk 0:01:31.3]} 27... Bf2
{[%clk 0:01:30.6]} 28. Red1 {[%clk 0:01:24]} 28... Rxd3 {[%clk 0:01:31.2]} 29.
Rxd3 {[%clk 0:01:24.1]} 29... Qc5 {[%clk 0:01:32.8]} 30. b3 {[%clk 0:01:23]}
30... g6 {[%clk 0:01:29.5]} 31. Qf4 {[%clk 0:01:20.1]} 31... h5 {[%clk
0:01:24.9]} 32. Rd7 {[%clk 0:01:18.6]} 32... Be1 {[%clk 0:01:18.3]} 33. Rd1
{[%clk 0:00:54.6]} 33... Bc3 {[%clk 0:01:15]} 34. h4 {[%clk 0:00:55.1]} 34...
Qe7 {[%clk 0:01:14.3]} 35. Rg1 {[%clk 0:00:45.6]} 35... Rd8 {[%clk 0:01:10.5]}
36. Qe4 {[%clk 0:00:43.7]} 36... Rd4 {[%clk 0:01:06.8]} 37. Qa8+ {[%clk
0:00:40.3]} 37... Kg7 {[%clk 0:01:04.2]} 38. Qxa6 {[%clk 0:00:39]} 38... Qxh4
{[%clk 0:01:04.7]} 39. Qb7 {[%clk 0:00:33.8]} 39... Qf2 {[%clk 0:01:02]} 40. Rc1
{[%clk 0:00:32.5]} 40... Rg4 {[%clk 0:00:44.3]} 41. Qb6 {[%clk 0:00:24.2]} 41...
Bd4 {[%clk 0:00:27.7]} 42. Qxb4 {[%clk 0:00:20.6]} 42... Bxe5 {[%clk 0:00:28.9]}
43. Qd2 {[%clk 0:00:13.6]} 43... Qxd2 {[%clk 0:00:20.9]} 44. Nxd2 {[%clk
0:00:14.4]} 44... Bc3 {[%clk 0:00:17.6]} 45. Nc4 {[%clk 0:00:14.5]} 45... Rxc4
{[%clk 0:00:18.6]} 46. bxc4 {[%clk 0:00:14.3]} 46... Bxa5 {[%clk 0:00:20.3]} 47.
c5 {[%clk 0:00:15]} 47... h4 {[%clk 0:00:21.3]} 48. Rh1 {[%clk 0:00:14.2]} 48...
g5 {[%clk 0:00:22.3]} 49. c4 {[%clk 0:00:14.7]} 49... f5 {[%clk 0:00:22.8]} 50.
Kc2 {[%clk 0:00:15.7]} 50... Kg6 {[%clk 0:00:23.6]} 51. Kd3 {[%clk 0:00:16.4]}
51... e5 {[%clk 0:00:24.5]} 52. c6 {[%clk 0:00:16.1]} 52... Bc7 {[%clk
0:00:23.6]} 53. Rb1 {[%clk 0:00:12.9]} 53... h3 {[%clk 0:00:23]} 54. Ke2 {[%clk
0:00:12.9]} 54... h2 {[%clk 0:00:20.4]} 55. Kf2 {[%clk 0:00:13.2]} 55... g4
{[%clk 0:00:09.6]} 56. Kg2 {[%clk 0:00:13.5]} 56... e4 {[%clk 0:00:09.8]} 57.
Rb7 {[%clk 0:00:12.5]} 57... Be5 {[%clk 0:00:04.5]} 58. c7 {[%clk 0:00:12.1]}
58... Bxc7 {[%clk 0:00:05.4]} 59. Rxc7 {[%clk 0:00:12.9]} 59... e3 {[%clk
0:00:06.7]} 60. Re7 {[%clk 0:00:12.6]} 60... f4 {[%clk 0:00:07.3]} 61. Kxh2
{[%clk 0:00:13.8]} 61... Kf6 {[%clk 0:00:07.6]} 62. Re8 {[%clk 0:00:14.6]} 62...
Kf7 {[%clk 0:00:04.7]} 63. Re4 {[%clk 0:00:14.4]} 63... Kf6 {[%clk 0:00:02.4]}
64. Rxf4+ {[%clk 0:00:14.7]} 64... Ke5 {[%clk 0:00:03.8]} 65. Rxg4 {[%clk
0:00:15.6]} 65... e2 {[%clk 0:00:05.1]} 66. Rg1 {[%clk 0:00:15.8]} 1-0

[Event "*** Titled Tuesday 3|2 Blitz"]
[Site "Chess.com"]
[Date "2015.09.01"]
[Round "9"]
[White "facu57"]
[Black "E-Shaposhnikov"]
[Result "0-1"]
[WhiteElo "2474"]
[BlackElo "2497"]
[TimeControl "180+2"]
[EndTime "12:57:48 PDT"]
[Termination "E-Shaposhnikov won by resignation"]

1. e4 {[%clk 0:03:01.9]} 1... c5 {[%clk 0:03:00.2]} 2. Nc3 {[%clk 0:03:02.6]}
2... e6 {[%clk 0:03:01.5]} 3. g3 {[%clk 0:03:03.2]} 3... d5 {[%clk 0:03:02.6]}
4. exd5 {[%clk 0:03:01.7]} 4... exd5 {[%clk 0:03:04.5]} 5. Bg2 {[%clk
0:03:01.1]} 5... d4 {[%clk 0:03:06.1]} 6. Qe2+ {[%clk 0:02:59.5]} 6... Be7
{[%clk 0:03:05.3]} 7. Nd5 {[%clk 0:02:58.7]} 7... Nc6 {[%clk 0:03:06.4]} 8. d3
{[%clk 0:02:58.1]} 8... Be6 {[%clk 0:03:05.9]} 9. Nxe7 {[%clk 0:02:56.5]} 9...
Ngxe7 {[%clk 0:03:06.6]} 10. Nf3 {[%clk 0:02:58.4]} 10... O-O {[%clk 0:03:06.8]}
11. O-O {[%clk 0:02:56.8]} 11... Qd7 {[%clk 0:03:07.9]} 12. Re1 {[%clk 0:02:53]}
12... Ng6 {[%clk 0:03:02.7]} 13. Bd2 {[%clk 0:02:45.3]} 13... Rae8 {[%clk
0:02:57.4]} 14. Qf1 {[%clk 0:02:40]} 14... h6 {[%clk 0:02:51.6]} 15. a3 {[%clk
0:02:40.1]} 15... a5 {[%clk 0:02:49.2]} 16. h4 {[%clk 0:02:33.3]} 16... b6
{[%clk 0:02:18.4]} 17. b4 {[%clk 0:02:18.9]} 17... axb4 {[%clk 0:02:18.1]} 18.
axb4 {[%clk 0:02:19.4]} 18... Nxb4 {[%clk 0:02:06.2]} 19. Bxb4 {[%clk
0:02:20.3]} 19... cxb4 {[%clk 0:02:08.1]} 20. Rab1 {[%clk 0:02:18.7]} 20... Qd6
{[%clk 0:02:06.6]} 21. h5 {[%clk 0:01:59.1]} 21... Ne7 {[%clk 0:02:06.9]} 22.
Nd2 {[%clk 0:02:00.8]} 22... Nd5 {[%clk 0:02:00.3]} 23. Nc4 {[%clk 0:01:55.8]}
23... Qc7 {[%clk 0:01:57.1]} 24. Bxd5 {[%clk 0:01:52.9]} 24... Bxd5 {[%clk
0:01:59]} 25. Rxb4 {[%clk 0:01:52]} 25... Bc6 {[%clk 0:01:26.3]} 26. Rxb6 {[%clk
0:01:49.1]} 26... Rxe1 {[%clk 0:01:26.1]} 27. Qxe1 {[%clk 0:01:51]} 27... Re8
{[%clk 0:01:27.5]} 28. Qf1 {[%clk 0:01:50.2]} 28... Ba8 {[%clk 0:01:25.7]} 29.
Rb1 {[%clk 0:01:43]} 29... Qc6 {[%clk 0:01:08.3]} 30. f3 {[%clk 0:01:43.2]}
30... Qxf3 {[%clk 0:01:04.8]} 31. Qxf3 {[%clk 0:01:44.1]} 31... Bxf3 {[%clk
0:01:06.7]} 32. Nd6 {[%clk 0:01:42.1]} 32... Rd8 {[%clk 0:01:04.5]} 33. Nf5
{[%clk 0:01:39.8]} 33... Bg4 {[%clk 0:00:52.7]} 34. Ne7+ {[%clk 0:01:30.8]}
34... Kh7 {[%clk 0:00:52.7]} 35. Rb4 {[%clk 0:01:27.4]} 35... Rd6 {[%clk
0:00:52.9]} 36. Kg2 {[%clk 0:01:22.9]} 36... Re6 {[%clk 0:00:48.3]} 37. Rxd4
{[%clk 0:01:00.5]} 37... Re2+ {[%clk 0:00:43.5]} 38. Kf1 {[%clk 0:00:59.6]}
38... Bxh5 {[%clk 0:00:43.2]} 39. Rh4 {[%clk 0:00:54.4]} 39... g6 {[%clk
0:00:30.3]} 40. Nd5 {[%clk 0:00:51.2]} 40... Rxc2 {[%clk 0:00:17.8]} 41. g4
{[%clk 0:00:51.9]} 41... Rc5 {[%clk 0:00:16.5]} 42. Ne3 {[%clk 0:00:49]} 42...
Bxg4 {[%clk 0:00:15.9]} 43. Rxg4 {[%clk 0:00:50.3]} 43... f5 {[%clk 0:00:16.8]}
44. Rc4 {[%clk 0:00:49.3]} 44... Re5 {[%clk 0:00:18]} 45. Rc7+ {[%clk
0:00:46.3]} 45... Kg8 {[%clk 0:00:19]} 46. Kf2 {[%clk 0:00:46.2]} 46... h5
{[%clk 0:00:19.3]} 47. d4 {[%clk 0:00:47.2]} 47... Re4 {[%clk 0:00:19.7]} 48. d5
{[%clk 0:00:46.3]} 48... Rd4 {[%clk 0:00:20.9]} 49. Rd7 {[%clk 0:00:36.3]} 49...
h4 {[%clk 0:00:22.3]} 50. Kg2 {[%clk 0:00:36]} 50... Rd2+ {[%clk 0:00:22.1]} 51.
Kg1 {[%clk 0:00:35.1]} 51... h3 {[%clk 0:00:21.6]} 52. Nf1 {[%clk 0:00:34.8]}
52... Rd1 {[%clk 0:00:19.8]} 53. Rd8+ {[%clk 0:00:32.1]} 53... Kf7 {[%clk
0:00:20.7]} 54. Rh8 {[%clk 0:00:32.8]} 54... Rxd5 {[%clk 0:00:18.6]} 55. Rxh3
{[%clk 0:00:33.6]} 55... Kf6 {[%clk 0:00:20.2]} 56. Ne3 {[%clk 0:00:33.9]} 56...
Rd2 {[%clk 0:00:20.9]} 57. Rh8 {[%clk 0:00:32.4]} 57... Kg5 {[%clk 0:00:20.8]}
58. Nf1 {[%clk 0:00:30.1]} 58... Ra2 {[%clk 0:00:21.1]} 59. Rb8 {[%clk
0:00:30.8]} 59... f4 {[%clk 0:00:21.6]} 60. Rb6 {[%clk 0:00:31.3]} 60... Kf5
{[%clk 0:00:22.4]} 61. Rb5+ {[%clk 0:00:32]} 61... Kg4 {[%clk 0:00:23.4]} 62.
Rb4 {[%clk 0:00:33.6]} 62... g5 {[%clk 0:00:24.3]} 63. Rc4 {[%clk 0:00:35]}
63... Kh4 {[%clk 0:00:23.8]} 64. Rc8 {[%clk 0:00:35.2]} 64... Kg4 {[%clk
0:00:23.6]} 65. Rb8 {[%clk 0:00:35.5]} 65... Ra3 {[%clk 0:00:22.3]} 66. Kg2
{[%clk 0:00:32.1]} 66... Ra2+ {[%clk 0:00:23.3]} 67. Kg1 {[%clk 0:00:33.8]}
67... Rc2 {[%clk 0:00:21.2]} 68. Nh2+ {[%clk 0:00:34]} 68... Kh3 {[%clk
0:00:20.8]} 69. Rb3+ {[%clk 0:00:34.8]} 69... Kh4 {[%clk 0:00:19.4]} 70. Nf3+
{[%clk 0:00:36.1]} 70... Kg4 {[%clk 0:00:20.5]} 71. Ne5+ {[%clk 0:00:36.7]}
71... Kf5 {[%clk 0:00:21.3]} 72. Nf3 {[%clk 0:00:37.9]} 72... Rc1+ {[%clk
0:00:19.6]} 73. Kf2 {[%clk 0:00:38.4]} 73... g4 {[%clk 0:00:21.2]} 74. Rb5+
{[%clk 0:00:38]} 74... Kf6 {[%clk 0:00:21.9]} 75. Nd4 {[%clk 0:00:36.7]} 75...
Rd1 {[%clk 0:00:22.2]} 76. Rf5+ {[%clk 0:00:37]} 76... Kg6 {[%clk 0:00:21.9]}
77. Rxf4 {[%clk 0:00:38.7]} 77... Kg5 {[%clk 0:00:21.2]} 78. Ne6+ {[%clk
0:00:39.2]} 78... Kh5 {[%clk 0:00:22.8]} 79. Rf6 {[%clk 0:00:34.6]} 79... Rd2+
{[%clk 0:00:19.2]} 80. Ke3 {[%clk 0:00:33.1]} 80... Ra2 {[%clk 0:00:18.9]} 81.
Rf8 {[%clk 0:00:22.5]} 81... Ra3+ {[%clk 0:00:18.8]} 82. Ke4 {[%clk 0:00:21.6]}
82... Kh4 {[%clk 0:00:20.3]} 83. Nd4 {[%clk 0:00:21.2]} 83... Kg3 {[%clk
0:00:20.3]} 84. Rg8 {[%clk 0:00:22.4]} 84... Ra4 {[%clk 0:00:18.3]} 85. Rg7
{[%clk 0:00:22.1]} 85... Kh3 {[%clk 0:00:17.6]} 86. Ke3 {[%clk 0:00:22.2]} 86...
g3 {[%clk 0:00:18.2]} 87. Ne2 {[%clk 0:00:20.5]} 87... Ra3+ {[%clk 0:00:12.3]}
88. Kf4 {[%clk 0:00:20.3]} 88... Ra4+ {[%clk 0:00:13.6]} 89. Kf3 {[%clk
0:00:21.6]} 89... Ra3+ {[%clk 0:00:14.8]} 90. Ke4 {[%clk 0:00:22.8]} 90... Ra4+
{[%clk 0:00:15.1]} 91. Ke3 {[%clk 0:00:23.4]} 91... Ra3+ {[%clk 0:00:16.1]} 92.
Kd2 {[%clk 0:00:24.9]} 92... Ra2+ {[%clk 0:00:15]} 93. Ke3 {[%clk 0:00:26.2]}
93... Ra3+ {[%clk 0:00:16.2]} 94. Ke4 {[%clk 0:00:27.9]} 94... Ra4+ {[%clk
0:00:16.8]} 95. Kf5 {[%clk 0:00:29.3]} 95... Ra5+ {[%clk 0:00:16.3]} 96. Ke6
{[%clk 0:00:30.3]} 96... Ra6+ {[%clk 0:00:15.3]} 97. Kd5 {[%clk 0:00:31.2]}
97... Ra5+ {[%clk 0:00:15.1]} 98. Kd4 {[%clk 0:00:31.9]} 98... Ra4+ {[%clk
0:00:14.3]} 99. Kd3 {[%clk 0:00:32.7]} 99... Ra3+ {[%clk 0:00:15.6]} 100. Kc4
{[%clk 0:00:34.1]} 100... Ra4+ {[%clk 0:00:11.4]} 101. Kb3 {[%clk 0:00:35]}
101... Rg4 {[%clk 0:00:10.7]} 102. Rh7+ {[%clk 0:00:34.6]} 102... Kg2 {[%clk
0:00:11.6]} 103. Kc2 {[%clk 0:00:35.9]} 103... Kf3 {[%clk 0:00:08.4]} 104. Kd3
{[%clk 0:00:32.3]} 104... Rg8 {[%clk 0:00:05.6]} 105. Rf7+ {[%clk 0:00:31.9]}
105... Kg2 {[%clk 0:00:05.6]} 106. Nf4+ {[%clk 0:00:32.5]} 106... Kf3 {[%clk
0:00:06.2]} 107. Ne2+ {[%clk 0:00:31.4]} 107... Kg4 {[%clk 0:00:06.6]} 108. Nd4
{[%clk 0:00:30.8]} 108... g2 {[%clk 0:00:06.9]} 109. Ne2 {[%clk 0:00:32]} 109...
Rd8+ {[%clk 0:00:07.2]} 110. Kc3 {[%clk 0:00:33.1]} 110... Re8 {[%clk
0:00:08.3]} 111. Rg7+ {[%clk 0:00:33.5]} 111... Kf3 {[%clk 0:00:09.3]} 112. Nd4+
{[%clk 0:00:32.2]} 112... Kf2 {[%clk 0:00:09.7]} 113. Rf7+ {[%clk 0:00:33.7]}
113... Kg3 {[%clk 0:00:10.8]} 114. Rg7+ {[%clk 0:00:33.1]} 114... Kf2 {[%clk
0:00:12]} 115. Rf7+ {[%clk 0:00:28.2]} 115... Kg3 {[%clk 0:00:10.1]} 116. Nf5+
{[%clk 0:00:28.6]} 116... Kg4 {[%clk 0:00:08.1]} 117. Nd6 {[%clk 0:00:24]}
117... Rg8 {[%clk 0:00:07.8]} 118. Ne4 {[%clk 0:00:14.1]} 118... g1=Q {[%clk
0:00:08.9]} 119. Nf6+ {[%clk 0:00:15.8]} 119... Kh3 {[%clk 0:00:07]} 120. Nxg8
{[%clk 0:00:17.7]} 120... Qxg8 {[%clk 0:00:07.4]} 121. Rf3+ {[%clk 0:00:19.3]}
121... Kg2 {[%clk 0:00:08.8]} 122. Rd3 {[%clk 0:00:20]} 122... Qc8+ {[%clk
0:00:10.3]} 123. Kd4 {[%clk 0:00:21.3]} 123... Kf2 {[%clk 0:00:11.3]} 124. Rc3
{[%clk 0:00:22.8]} 124... Qh8+ {[%clk 0:00:11.4]} 125. Kc4 {[%clk 0:00:24.7]}
125... Qd8 {[%clk 0:00:12.2]} 126. Kb3 {[%clk 0:00:26]} 126... Ke2 {[%clk
0:00:12.8]} 127. Rc4 {[%clk 0:00:27.2]} 127... Qb6+ {[%clk 0:00:13.1]} 128. Rb4
{[%clk 0:00:28.4]} 128... Qe6+ {[%clk 0:00:14.7]} 129. Kc3 {[%clk 0:00:29.4]}
129... Qe5+ {[%clk 0:00:15.2]} 130. Kc2 {[%clk 0:00:30]} 130... Qc5+ {[%clk
0:00:15.7]} 131. Kb3 {[%clk 0:00:31.6]} 131... Kd3 {[%clk 0:00:17.3]} 132. Rh4
{[%clk 0:00:28.6]} 132... Qd5+ {[%clk 0:00:17.5]} 133. Ka3 {[%clk 0:00:28.7]}
133... Qd6+ {[%clk 0:00:16.9]} 134. Kb3 {[%clk 0:00:29.5]} 134... Qe6+ {[%clk
0:00:16.7]} 135. Ka3 {[%clk 0:00:27.1]} 135... Qe7+ {[%clk 0:00:17.4]} 136. Rb4
{[%clk 0:00:28.7]} 136... Kc3 {[%clk 0:00:18.5]} 0-1